[Event "TUR-ch U13-18 Open 2023"]
[Site "Antalya"]
[Date "2023.01.27"]
[Round "9"]
[White "Yildirim, Ibrahim Halil"]
[Black "Kavri, Yusuf Eren"]
[Result "1-0"]
[ECO "B50"]
[WhiteElo "2124"]
[BlackElo "2050"]
[Annotator "TA"]
[PlyCount "171"]
[EventDate "2023.01.17"]
[EventType "swiss"]
[EventCountry "TUR"]
[SourceTitle "playchess.com"]
[Source "ChessBase"]
[SourceQuality "1"]
[TimeControl "5400+30"]

{[%evp 15,171,0,89,51,49,-23,46,31,35,29,39,54,35,38,27,31,37,51,90,90,94,91,127,143,98,52,52,52,37,-10,-18,-33,-9,-35,-20,-12,0,-1,50,0,26,29,14,22,31,-78,-81,-77,-76,-244,-244,-289,-225,-222,-136,-136,-104,-111,-119,-313,-315,-340,-325,-387,-324,-371,-359,-386,-273,-260,0,-257,0,0,0,0,12850,0,0,-45,0,0,896,905,889,865,683,637,576,524,29950,29953,29957,29955,29957,29958,29957,29958,29957,29959,29955,29956,29961,29963,29962,29963,29962,29964,29960,29961,29966,29966,29972,29973,29973,29968,29981,29975,29975,29976,29976,29977,29977,29972,29967,29963,29972,29973,29971,29973,29976,29977,29977,29978,29978,29979,29982,29980,29980,29981,29981,29980,29980,29981,29981,29982,29983,29983,29983,29984,29988,29987,29987,29988,29988,29989,29989,72]} 1. e4 c5 2. Nf3 d6 3. c3 Nf6 4. Bd3 e5 5. O-O g6 6. Re1 Bg7 {[%emt 0:20:30]} 7. Bf1 {[%emt 0:35:00]} O-O {[%emt 0:00:30]} 8. d4 {[%emt 0:00:30] 8.h3 is the modern continuation.} Qc7 {[%emt 0:08:30]} (8... cxd4 $11 9. cxd4 exd4) 9. h3 {[%emt 0:05:30] B50: Sicilian: 2...d6, Miscellaneous.} Nc6 {[%emt 0:03:30] [#]} 10. Qc2 $146 {[%emt 0:05:30]} (10. d5 $14 Ne7 11. c4) ({Predecessor:} 10. dxe5 dxe5 11. Qc2 h6 12. Be3 b6 13. Nbd2 Be6 14. Bc4 Rfe8 15. Bxe6 Rxe6 16. Rad1 Nh5 {0-1 Arencibia Monduy,A (2133)-Pichot,A (2628) Titled Tuesday intern op 02nd Nov blitz 2021 (2)}) 10... Nh5 {[%emt 0:11:30]} (10... cxd4 $11 11. cxd4 exd4) 11. dxc5 {[%emt 0:09:30] White is slightly better.} dxc5 {[%emt 0:00:30]} 12. Na3 {[%emt 0:01:30]} h6 {[%emt 0:03:30]} 13. Be3 {[%emt 0:03:30]} Qe7 {[%emt 0:02:30]} 14. Qb3 {[%emt 0:14:30]} b6 {[%emt 0:04:30]} 15. Rad1 {[%emt 0:00:30]} Nf4 {[%emt 0:08:30]} 16. Qa4 {[%emt 0:04:02]} Na5 {[%emt 0:06:30]} 17. Bxf4 {[%emt 0:01:09]} exf4 {[%emt 0:00:30]} 18. e5 {[%emt 0:00:29]} g5 {[%emt 0:04:30]} 19. Bd3 {[%emt 0:00:50] White is much more active. The black rooks are badly placed.} Bb7 {[%emt 0:01:30] Inhibits Qe4. Black is weak on the light squares} 20. Be4 {[%emt 0:01:53]} (20. b4 $1 $16 {[%cal Rb4a5]} Bxf3 21. gxf3) 20... Bxe4 $14 {[%emt 0:05:02]} 21. Qxe4 {[%emt 0:00:10]} Rad8 {[%emt 0:00:28]} 22. Qa4 {[%emt 0:06:26]} (22. Nb5 $14 {is superior.}) 22... Qe6 $11 {[%emt 0:03:29]} 23. b4 {[%emt 0:04:35]} cxb4 {[%emt 0:03:35]} 24. cxb4 {[%emt 0:00:21]} Nc6 {[%emt 0:00:16]} 25. Rc1 {[%emt 0:04:03]} Rc8 {[%emt 0:03:29][%cal Rc6e5]} 26. Nc4 {[%emt 0:01:46] Nd6 is the strong threat.} Nb8 {[%emt 0:03:53]} (26... b5 $11 27. Qxb5 Rb8) 27. Qb5 {[%emt 0:00:49]} (27. Nd4 $14 Qd5 28. Nf5) 27... Rfd8 {[%emt 0:03:42]} (27... Qd7 $5 {[%cal Rd7b5]} 28. Nd6 Qxb5 29. Nxb5 Rxc1 30. Rxc1 a5 $11) 28. Nd6 {[%emt 0:00:00]} Rxc1 {[%emt 0:00:00]} 29. Rxc1 {[%emt 0:00:11] Black must now prevent Rc7.} Nd7 $1 {[%emt 0:00:53][%cal Rd7e5]} (29... Bxe5 $2 30. Qxe5 Qxd6 31. Qxd6 Rxd6 32. Rc8+ Kg7 33. Rxb8 $18) 30. Nb7 {[%emt 0:02:03] Excellent horsemanship.} (30. Nxf7 $14 {stays ahead.} Qxf7 31. Rd1) 30... Rb8 $17 {[%emt 0:01:46]} 31. Rc6 {[%emt 0:00:10]} Qxa2 {[%emt 0:00:52]} 32. Rc7 {[%emt 0:00:36] [#]} (32. e6 $17 {keeps fighting.} fxe6 33. Rc7) 32... Nxe5 $1 $19 {[%emt 0:00:34][%mdl 576] Decoy} 33. Nd6 {[%emt 0:00:39]} (33. Nxe5 Qa1+) 33... Nxf3+ {[%emt 0:01:21][%mdl 64] Remove Defender} 34. gxf3 {[%emt 0:00:30]} Bd4 {[%emt 0:00:30]} 35. Ne4 {[%emt 0:00:30]} Rd8 {[%emt 0:00:30] Wards off Qd7} 36. Qc6 {[%emt 0:00:30]} Kg7 {[%emt 0:00:30]} 37. Qb7 $2 {[%emt 0:00:30]} (37. Re7 $17 {was necessary.}) 37... a5 {[%emt 0:00:30]} 38. bxa5 {[%emt 0:00:30]} bxa5 {[%emt 0:00:30] Strongly threatening ...a4.} 39. Qb5 {[%emt 0:00:30]} Qd5 {[%emt 0:00:30]} 40. Qa4 {[%emt 0:00:30]} Bb6 {[%emt 0:00:30]} 41. Rc1 {[%emt 0:00:30]} Qd4 {[%emt 0:00:30]} 42. Qc6 {[%emt 0:00:30]} f5 $2 {[%emt 0:00:30]} ({Black should play} 42... a4 $19 43. Rc3 Rd7) 43. Rc4 $2 {[%emt 0:00:30][%mdl 8192]} (43. Rb1 $1 $11 Rb8 44. Nd6 Qxf2+ 45. Kh1) 43... Qd1+ $2 {[%emt 0:00:30]} (43... Qb2 $19 44. Nc5 Rd1+ 45. Kg2 Qb1 46. Qb7+ Kg8 47. Qb8+ (47. Ne6 $2 Rg1+ 48. Kh2 Rh1+ 49. Kg2 Qg1#) 47... Bd8 48. Qxb1 Rxb1) 44. Kh2 $11 {[%emt 0:00:30] White threatens Qf6+ and mate. Some like it hot} fxe4 {[%emt 0:00:30]} 45. Qxb6 {[%emt 0:00:30] Threatens to win with Rc6.} exf3 $2 {[%emt 0:00:30][%mdl 12288] Endgame KQR-KQR} (45... e3 $2 46. Rc6 Qd3 47. Qc7+ (47. Rxh6 Qf5 $11) 47... Rd7 48. Qe5+ Kh7 49. Qf6 exf2 50. Qxh6+ Kg8 51. Qxg5+ Kh8 52. Qf6+ (52. Qxa5 {gets mated.} f1=N+ 53. Kg1 Qe3+ 54. Kh1 Qxf3+ 55. Kg1 Rg7+) 52... Kh7 53. Qh6+ (53. Qxf4 $2 {too greedy.} f1=N+ 54. Kg1 Qe3+ 55. Qxe3 Nxe3 $19) 53... Kg8 54. Rg6+ $18 (54. Qxf4 f1=N+ 55. Kh1 Qf5 $11) (54. Qxf4 f1=N+ 55. Kh1 Qf5 $11)) (45... Rd7 $11) 46. Qe6 $2 {[%emt 0:00:30]} (46. Rc6 $1 $18 {[%cal Rc6g6] White wants to mate with Rg6+.} Qd3 47. Qc7+ Rd7 48. Qe5+ Kh7 49. Qe6) 46... Qd6 $15 {[%emt 0:00:30]} 47. Qe4 {[%emt 0:00:30][%cal Oc4c6] aiming for Rc6!} Qf6 {[%emt 0:00:30][%cal Og5g4] Dodges Rc6} (47... Qb6 $5 {[%cal Rb6f2]} 48. Qc2 Qe6 $11) 48. Rc6 {[%emt 0:00:30]} Qf7 {[%emt 0:00:30][%mdl 8192] White stays focused until the end.} (48... Rd6 $11 49. Rc8 Qf7) 49. Qe5+ $18 {[%emt 0:00:30]} Kh7 {[%emt 0:00:30] [#]} 50. Rf6 $1 {[%emt 0:00:30]} Qg7 {[%emt 0:00:30]} 51. Qf5+ {[%emt 0:00:30]} Kh8 {[%emt 0:00:30][%cal Og5g4]} 52. Rf7 {[%emt 0:00:30]} Rg8 {[%emt 0:00:30]} 53. Rxg7 {[%emt 0:00:30] White mates.} Rxg7 {[%emt 0:00:30]} 54. Qxa5 {[%emt 0:00:30] KQ-KR} Rf7 {[%emt 0:00:30]} 55. Qd5 {[%emt 0:00:30]} Kg7 {[%emt 0:00:30]} 56. Qxf3 {[%emt 0:00:30]} Kg6 {[%emt 0:00:30]} 57. Qd3+ {[%emt 0:00:30]} Kg7 {[%emt 0:00:30]} 58. Kg2 {[%emt 0:00:30]} f3+ {[%emt 0:00:30]} 59. Kg3 {[%emt 0:00:30]} Rf4 {[%emt 0:00:30]} 60. Qd7+ {[%emt 0:00:30]} Rf7 {[%emt 0:00:30]} 61. Qd4+ {[%emt 0:00:30]} Kg6 {[%emt 0:00:30]} 62. Qe4+ {[%emt 0:00:30]} Kg7 {[%emt 0:00:30]} 63. h4 {[%emt 0:00:30]} Rf4 {[%emt 0:00:30]} 64. Qe7+ {[%emt 0:00:00]} Rf7 {[%emt 0:00:38]} 65. Qe5+ {[%emt 0:00:00]} Kg6 {[%emt 0:00:30]} 66. Qe6+ {[%emt 0:00:00]} Kg7 {[%emt 0:00:30]} 67. h5 {[%emt 0:00:14]} Rf6 {[%emt 0:00:30]} 68. Qe8 {[%emt 0:00:30]} Rf7 {[%emt 0:00:00]} 69. Kh2 {[%emt 0:00:00]} Rf6 {[%emt 0:00:49]} 70. Kg1 {[%emt 0:00:00]} Rf7 {[%emt 0:00:26]} 71. Kf1 {[%emt 0:00:00]} Rf6 {[%emt 0:00:31]} 72. Ke1 {[%emt 0:00:01]} Rf7 {[%emt 0:00:25]} 73. Kd2 {[%emt 0:00:00]} Rf6 {[%emt 0:00:20]} 74. Ke3 {[%emt 0:00:20]} Rf7 {[%emt 0:00:47]} 75. Ke4 {[%emt 0:00:30]} Rf4+ {[%emt 0:00:00]} 76. Kd5 {[%emt 0:00:05]} Rf5+ {[%emt 0:01:13]} 77. Ke6 {[%emt 0:00:30]} Rf6+ {[%emt 0:00:00]} 78. Ke7 {[%emt 0:00:00]} g4 {[%emt 0:00:53]} 79. Qc8 {[%emt 0:00:11]} Rf7+ {[%emt 0:00:15] [#]} 80. Kd6 $1 {[%emt 0:00:10]} Rf4 {[%emt 0:00:11]} 81. Ke5 {[%emt 0:00:23]} Rf7 {[%emt 0:01:09]} 82. Qxg4+ {[%emt 0:00:07]} Kh7 {[%emt 0:00:01]} 83. Ke6 {[%emt 0:01:07]} Rg7 {[%emt 0:00:30]} 84. Qxf3 {[%emt 0:00:11]} Kh8 {[%emt 0:00:26]} 85. Qf8+ {[%emt 0:00:30]} Kh7 {[%emt 0:00:30] [#]} 86. Qxg7+ $3 {[%emt 0:00:00] Weighted Error Value: White=0.46/Black=0.44} 1-0

[Event "TUR-ch U13-18 Open 2023"]
[Site "Antalya"]
[Date "2023.01.27"]
[Round "9"]
[White "Gokcek, Kursat Bugra"]
[Black "Kandaz, Berat Efe"]
[Result "*"]
[WhiteElo "2116"]
[BlackElo "1650"]
[Annotator "TA"]
[PlyCount "30"]
[EventDate "2023.01.17"]
[EventType "swiss"]
[EventCountry "TUR"]
[SourceTitle "playchess.com"]
[Source "ChessBase"]
[SourceQuality "1"]
[TimeControl "5400+30"]

{[%evp 13,17,0,0,-6,0,-23]} 1. e4 {[%emt 0:00:00]} c5 {[%emt 0:03:00]} 2. c3 {[%emt 0:00:30]} e5 {[%emt 0:00:30]} 3. Nf3 {[%emt 0:00:30]} Nc6 {[%emt 0:00:30]} 4. d4 {[%emt 0:00:30]} cxd4 {[%emt 0:00:30]} 5. cxd4 {[%emt 0:00:30]} exd4 {[%emt 0:00:30]} 6. Nxd4 {[%emt 0:00:30]} Nf6 {[%emt 0:00:30]} 7. Nxc6 {[%emt 0:00:30]} dxc6 {[%emt 0:00:30]} 8. Qxd8+ {[%emt 0:00:30] B22: Sicilian: 2 c3.} Kxd8 {[%emt 0:00:30]} 9. Bg5 {[%emt 0:00:30] [#] A rather calm draw.} {Predecessor:} h6 $146 10. Bxf6+ gxf6 11. Bc4 Bb4+ 12. Nd2 Ke7 13. Ke2 Rg8 14. g3 Rd8 15. Nf3 Bg4 {0-1 Tiarks,J (2179)-Heberla,B (2563) Gorzow Wielkopolski Lasker Memorial 2nd 2018 (4)} *

[Event "TUR-ch U13-18 Open 2023"]
[Site "Antalya"]
[Date "2023.01.27"]
[Round "9"]
[White "Danaci, Ege"]
[Black "Ozbek, Osman Tuncay"]
[Result "*"]
[WhiteElo "2088"]
[BlackElo "1405"]
[Annotator "TA"]
[PlyCount "35"]
[EventDate "2023.01.17"]
[EventType "swiss"]
[EventCountry "TUR"]
[SourceTitle "playchess.com"]
[Source "ChessBase"]
[SourceQuality "1"]
[TimeControl "5400+30"]

{[%evp 12,16,50,43,40,46,54]} 1. e4 {[%emt 0:01:00]} c5 {[%emt 0:01:00]} 2. Nf3 {[%emt 0:00:30]} e6 {[%emt 0:00:30]} 3. d4 {[%emt 0:00:30]} cxd4 {[%emt 0:00:30]} 4. Nxd4 {[%emt 0:00:30]} a6 {[%emt 0:00:00]} 5. Bd3 {[%emt 0:00:00]} d5 {[%emt 0:00:00]} 6. exd5 {[%emt 0:08:00]} Qxd5 {[%emt 0:00:00] [#]} 7. O-O $1 {[%emt 0:03:30] Active counter play!} Nf6 {[%emt 0:00:00] has lost popularity (7...Nd7). B42: Sicilian: Kan Variation: 5 Bd3.} (7... Qxd4 $2 8. Bb5+ axb5 9. Qxd4 $18) (7... Nd7 8. Be3) 8. Nc3 {[%emt 0:03:30]} Qd8 {[%emt 0:00:30] [#]} (8... Qxd4 $2 9. Bb5+ {[%mdl 64] Discovered Attack} axb5 10. Qxd4 $18) {Predecessor:} 9. Re1 $146 Be7 10. Bf4 O-O 11. Qd2 b5 12. Bxb8 Rxb8 13. Nc6 Qc7 14. Nxb8 Qxb8 15. a3 Bb7 16. Ne4 Ng4 17. Ng3 Bc5 18. Re2 {0-1 Ibarra Jerez,J (2563)-Naroditsky,D (2646) Titled Tuesday intern op1 2nd Aug blitz 2016 (7)} *

[Event "TUR-ch U13-18 Open 2023"]
[Site "Antalya"]
[Date "2023.01.27"]
[Round "9"]
[White "Topuz, Mirac Melih"]
[Black "Alpaslan, Utku"]
[Result "*"]
[WhiteElo "2071"]
[BlackElo "1765"]
[Annotator "TA"]
[PlyCount "41"]
[EventDate "2023.01.17"]
[EventType "swiss"]
[EventCountry "TUR"]
[SourceTitle "playchess.com"]
[Source "ChessBase"]
[SourceQuality "1"]
[TimeControl "5400+30"]

{[%evp 14,19,24,28,28,35,43,44]} 1. e4 {[%emt 0:01:00][%cal Be2e4,Be4e5][%mdl 32]} c5 {[%emt 0:01:00]} 2. Nf3 {[%emt 0:00:00]} e6 {[%emt 0:03:30]} 3. c3 {[%emt 0:00:00][%cal Bc2c3,Bc3d4,Bd4e5][%mdl 32]} Nf6 {[%emt 0:01:30]} 4. e5 {[%emt 0:00:30]} Nd5 {[%emt 0:00:00]} 5. d4 {[%emt 0:00:00]} cxd4 {[%emt 0:00:00]} 6. cxd4 {[%emt 0:00:00]} d6 {[%emt 0:00:30]} 7. Bc4 {[%emt 0:00:30]} Nb6 {[%emt 0:02:30]} 8. Bd3 {[%emt 0:03:00]} dxe5 {[%emt 0:01:30] B22: Sicilian: 2 c3.} 9. dxe5 {[%emt 0:00:30]} Bb4+ {[%emt 0:01:30]} 10. Nc3 {[%emt 0:00:30] [#]} {Predecessor:} Nd5 $146 11. O-O Nxc3 12. bxc3 Bxc3 13. Rb1 Nc6 14. Ba3 Bxe5 15. Nxe5 Nxe5 16. Bb5+ Nc6 17. Qf3 Bd7 18. Rfd1 Qg5 19. Rxd7 Kxd7 20. Qxf7+ Kc8 21. Bxc6 {1-0 Del Rosario Moreno,C (2117)-Fabian Brioso,C (1917) DOM-ch Santo Domingo 2018 (7)} *

[Event "TUR-ch U13-18 Open 2023"]
[Site "Antalya"]
[Date "2023.01.27"]
[Round "9"]
[White "Kazik, Oguz Kagan"]
[Black "Aydemir, Umut"]
[Result "1-0"]
[ECO "A07"]
[WhiteElo "2053"]
[BlackElo "1754"]
[Annotator "TA"]
[PlyCount "81"]
[EventDate "2023.01.17"]
[EventType "swiss"]
[EventCountry "TUR"]
[SourceTitle "playchess.com"]
[Source "ChessBase"]
[SourceQuality "1"]
[TimeControl "5400+30"]

{[%evp 9,81,0,16,0,0,-15,-9,-18,-8,-30,-22,-25,-15,-23,0,0,-7,-20,17,1,14,14,53,-58,-7,0,-6,-14,18,4,17,19,22,20,25,18,9,0,0,0,0,0,0,-8,30,-13,28,21,96,92,140,141,146,151,144,135,160,147,138,105,514,499,528,525,506,488,606,524,870,572,2202,2214,29989,29989]} 1. Nf3 d5 2. g3 g6 3. Bg2 Bg7 4. O-O e5 5. d3 Nc6 6. c3 {A07: Réti Opening: New York and Capablanca Systems.} Nf6 7. Bg5 h6 8. Bxf6 {The position is equal.} Bxf6 {[#]} 9. Qc2 $146 ({Predecessor:} 9. e4 Be6 10. Qe2 O-O 11. Nbd2 a5 12. Rfe1 Re8 13. Qe3 Bg7 14. Nb3 d4 15. cxd4 exd4 {0-1 Milijanovic,G (2047)-Stanic,A (2114) Belgrade-chTB Quality 2018 (4.5)}) 9... O-O 10. e4 Be6 11. Nbd2 Qd7 {[%emt 0:20:00]} 12. b4 {[%emt 0:23:30]} Rad8 {[%emt 0:15:30]} 13. Rfe1 {[%emt 0:11:30]} Rfe8 {[%emt 0:04:30]} 14. Rad1 {[%emt 0:04:30]} a5 {[%emt 0:04:30]} 15. b5 {[%emt 0:06:30]} Na7 {[%emt 0:01:30]} (15... Ne7 $5 {[%cal Rd7b5]}) 16. c4 {[%emt 0:05:30]} ({White should try} 16. exd5 $14 Bxd5 17. c4 Bxf3 18. Nxf3 (18. Bxf3 Qxd3 19. Qxd3 Rxd3 $14)) 16... dxc4 {[%emt 0:04:30]} (16... d4 $1 $15) 17. dxc4 $11 {[%emt 0:00:30]} Qd3 {[%emt 0:08:30]} 18. Qc1 {[%emt 0:02:30]} b6 {[%emt 0:07:30]} 19. Bf1 {[%emt 0:04:30]} Qd6 {[%emt 0:00:30]} 20. Nb1 {[%emt 0:06:30][%csl LRd6,LRh6][%cal Bd2b1,Bb1c3,Bc3d5][%mdl 32]} Qf8 {[%emt 0:09:30]} 21. Nc3 {[%emt 0:04:30]} Bg7 {[%emt 0:04:30]} 22. Nd5 {[%emt 0:07:30]} Rd7 {[%emt 0:00:44]} 23. Qe3 {[%emt 0:05:10]} Nc8 {[%emt 0:01:23]} 24. Nd2 {[%emt 0:02:18]} Nd6 {[%emt 0:01:38]} 25. a4 {[%emt 0:03:13]} f5 {[%emt 0:01:29]} 26. f3 {[%emt 0:03:09]} g5 {[%emt 0:02:39]} 27. Qe2 {[%emt 0:02:19]} Nb7 {[%emt 0:04:55]} 28. Bh3 {[%emt 0:01:35]} Nc5 {[%emt 0:00:40]} (28... f4 $11 {keeps the balance.} 29. Bxe6+ Rxe6) 29. Bxf5 $16 {[%emt 0:00:41]} Bxf5 {[%emt 0:00:30]} ({Black should play} 29... Nxa4 30. Bxe6+ Rxe6) 30. exf5 {[%emt 0:00:00]} Qxf5 {[%emt 0:02:55]} 31. Ne4 {[%emt 0:00:08]} Qf8 {[%emt 0:01:30]} 32. Kg2 {[%emt 0:03:39] [#] And now Nxc5 would win. White has more active pieces.} Red8 {[%emt 0:01:19]} 33. Nxc5 {[%emt 0:00:47]} Qxc5 {[%emt 0:00:03] Black is weak on the light squares} 34. Rd2 {[%emt 0:00:27]} c6 $2 {[%emt 0:01:20][%mdl 8192] Loses the game.} (34... Kh8 $16 {is a better chance.}) 35. bxc6 $18 {[%emt 0:00:30]} Qxc6 {[%emt 0:00:00] [#]} 36. Ne7+ $1 {[%emt 0:00:18][%mdl 576] Deflection} Rxe7 {[%emt 0:00:05]} 37. Rxd8+ {[%emt 0:00:00]} Kf7 {[%emt 0:01:44]} 38. Qd3 {[%emt 0:03:28] Rd6 is the strong threat.} Rc7 {[%emt 0:02:07]} 39. Qf5+ {[%emt 0:00:54]} Bf6 {[%emt 0:00:19]} 40. Qh7+ {[%emt 0:00:56]} Bg7 {[%emt 0:00:58]} 41. Rxe5 {[%emt 0:00:40] Weighted Error Value: White=0.37/Black=0.59} 1-0

[Event "TUR-ch U13-18 Open 2023"]
[Site "Antalya"]
[Date "2023.01.27"]
[Round "9"]
[White "Demirtas, Alper"]
[Black "Celik, Ege Yigit"]
[Result "1-0"]
[ECO "A35"]
[WhiteElo "1990"]
[BlackElo "1891"]
[Annotator "TA"]
[PlyCount "61"]
[EventDate "2023.01.17"]
[EventType "swiss"]
[EventCountry "TUR"]
[SourceTitle "playchess.com"]
[Source "ChessBase"]
[SourceQuality "1"]
[TimeControl "5400+30"]

{[%evp 16,61,5,0,25,39,35,28,35,42,29,28,12,3,14,15,16,7,18,15,20,22,52,55,104,100,146,148,358,376,356,369,354,364,362,198,218,227,265,253,539,469,618,587,969,310,705,705]} 1. c4 c5 2. Nf3 Nc6 3. Nc3 g6 4. e3 Nf6 5. d4 cxd4 6. exd4 d5 7. cxd5 Nxd5 8. Bc4 Nb6 9. Bb5 {[#] Threatens to win with d5.} a6 {A35: Symmetrical English: 2 Nc3 Nc6 3 Nf3.} 10. Bxc6+ bxc6 11. Ne5 Bg7 {[%emt 0:21:00] White has an edge.} 12. O-O {[%emt 0:32:30]} O-O {[%emt 0:10:30] [#]} 13. Nxc6 $146 {[%emt 0:08:30]} ({Predecessor:} 13. Bf4 Be6 14. Nxc6 Qd7 15. Ne5 Qb7 16. Qe2 Rfd8 17. Rfd1 Nd5 18. Bg5 Nxc3 19. bxc3 {0-1 De Winter,I-Rovira Mas,J Olympiad-18 Final D 1968 (3)}) 13... Qd6 {[%emt 0:05:30]} 14. d5 {[%emt 0:05:30] Qb3 would be deadly.} Bb7 {[%emt 0:20:30]} 15. Qb3 {[%emt 0:04:30]} Bxc6 {[%emt 0:01:30]} (15... Bxc3 {simplifies} 16. Qxb6 Bxc6 17. Qxc6 Be5) 16. Qxb6 {[%emt 0:00:30]} Bb5 {[%emt 0:00:30][%mdl 64] [#] Discovered Attack. A strong pair of Bishops.} 17. Qxd6 {[%emt 0:01:30]} exd6 {[%emt 0:00:00]} 18. Rd1 {[%emt 0:06:30]} Rfc8 {[%emt 0:09:00]} 19. Bf4 {[%emt 0:02:30]} Bc4 {[%emt 0:09:30]} (19... Bxc3 $14 20. bxc3 Rxc3) 20. Na4 $16 {[%emt 0:03:30]} Rab8 {[%emt 0:09:55] Repels Nb6} (20... Be2 $142) 21. Bxd6 {[%emt 0:02:30]} Rb5 {[%emt 0:00:33] This move loses the game for Black.} (21... Bb5 $16 {keeps fighting.}) 22. Rac1 $18 {[%emt 0:04:30]} Rd8 {[%emt 0:02:44]} 23. Rxc4 {[%emt 0:00:30]} Rxd6 {[%emt 0:00:02]} 24. Rc8+ {[%emt 0:01:30]} Bf8 {[%emt 0:00:02]} 25. Rc5 {[%emt 0:02:30]} (25. Nc3 $142) 25... Rb4 {[%emt 0:02:29]} 26. b3 {[%emt 0:00:30]} Rf6 {[%emt 0:00:30] aiming for ...Rxa4.} 27. Rc6 {[%emt 0:00:30]} Bd6 $2 {[%emt 0:00:30]} (27... Rd6 28. Rc8 Re4) 28. g3 {[%emt 0:00:30]} ({Not} 28. Rxa6 Bxh2+ 29. Kxh2 Rxa6 $16) 28... a5 {[%emt 0:00:30]} 29. Nc5 {[%emt 0:00:00]} Be5 {[%emt 0:04:06]} 30. Rc8+ {[%emt 0:01:00]} Kg7 {[%emt 0:00:36]} 31. Nd7 {[%emt 0:00:00][%csl LRe5,LRf6] Weighted Error Value: White=0.36/Black=0.56} 1-0

[Event "TUR-ch U13-18 Open 2023"]
[Site "Antalya"]
[Date "2023.01.27"]
[Round "9"]
[White "Engin, Onur Cinar"]
[Black "Gokcek, Kursat Bugra"]
[Result "0-1"]
[ECO "B22"]
[WhiteElo "1990"]
[BlackElo "2116"]
[Annotator "TA"]
[PlyCount "98"]
[EventDate "2023.01.17"]
[EventType "swiss"]
[EventCountry "TUR"]
[SourceTitle "playchess.com"]
[Source "ChessBase"]
[SourceQuality "1"]
[TimeControl "5400+30"]

{[%evp 23,98,-36,-37,-45,-35,-73,-54,-70,-49,-61,-20,-28,-14,-25,-33,-30,-34,-31,-29,-41,-41,-63,-63,-63,-63,-63,-63,-63,-63,-63,-63,-63,-63,-63,-63,-63,-63,-63,-60,-60,-61,-87,-87,-94,-8,-8,-8,-31,-31,-31,-8,-1118,-1118,-1118,-1118,-1111,-1104,-1104,-1099,-1098,-799,-1032,-1008,-1111,-172,-5125,-5125,-5122,-5110,-29968,-29969,-29981,-29961,-29982,-29983,-29983,-29984]} 1. e4 {[%emt 0:00:00]} c5 {[%emt 0:03:00]} 2. c3 {[%emt 0:00:30]} e5 {[%emt 0:00:30]} 3. Nf3 {[%emt 0:00:30]} Nc6 {[%emt 0:00:30]} 4. d4 {[%emt 0:00:30]} cxd4 {[%emt 0:00:30]} 5. cxd4 {[%emt 0:00:30]} exd4 {[%emt 0:00:30]} 6. Nxd4 {[%emt 0:00:30]} Nf6 {[%emt 0:00:30]} 7. Nxc6 {[%emt 0:00:30]} dxc6 {[%emt 0:00:30]} 8. Qxd8+ {[%emt 0:00:30]} Kxd8 {[%emt 0:00:30]} 9. Bg5 {[%emt 0:00:30]} h6 {[%emt 0:00:30]} 10. Bxf6+ {[%emt 0:00:30]} gxf6 {[%emt 0:00:30]} 11. Nc3 {[%emt 0:00:30]} Bb4 {[%emt 0:00:30]} 12. O-O-O+ {[%emt 0:00:30]} Ke7 {[%emt 0:00:30]} 13. Kc2 {[%emt 0:00:30] B22: Sicilian: 2 c3.} Be6 {[%emt 0:00:30] [#]} 14. Bd3 $146 {[%emt 0:00:30]} ({Predecessor:} 14. a3 Bc5 15. f3 Rad8 16. Be2 h5 17. Rxd8 Rxd8 18. Rd1 Rxd1 19. Nxd1 f5 20. e5 h4 {0-1 Toval,D (1780)-Emunds,H (2100) Muensterland Regionalliga 1718 2017 (1.7)}) 14... a5 {[%emt 0:00:30]} 15. a4 {[%emt 0:00:30] Black is slightly better.} Rad8 {[%emt 0:00:30]} (15... h5 $5 {[%cal Ra8g8]}) 16. f4 {[%emt 0:00:30]} Bc5 {[%emt 0:00:30][%cal Bb4c5,Bc5d6,Bd6f4][%mdl 32] Black is more active.} 17. Be2 {[%emt 0:00:30]} Rdg8 {[%emt 0:00:30]} 18. Bf3 {[%emt 0:00:30]} (18. f5 $5 {[%cal Rf5e6]} Bc8 19. g4 $11) 18... h5 {[%emt 0:00:30][%cal Bh6h5,Bh5h4][%mdl 32]} 19. Ne2 {[%emt 0:00:30]} h4 {[%emt 0:00:30]} 20. Nd4 {[%emt 0:00:30]} Bd6 {[%emt 0:00:30]} 21. Nxe6 {[%emt 0:00:30]} fxe6 {[%emt 0:00:30]} 22. Rd3 {[%emt 0:00:30]} Bxf4 {[%emt 0:00:30]} 23. Rhd1 {[%emt 0:00:30] aiming for Rd7+.} Rd8 {[%emt 0:00:30] Inhibits Rd7+.} (23... Bxh2 $2 24. Rd7+ Ke8 25. e5 $18) 24. Rxd8 {[%emt 0:00:30]} Rxd8 {[%emt 0:00:30]} 25. Rxd8 {[%emt 0:00:30]} Kxd8 $15 {[%emt 0:00:30][%mdl 4096] Endgame KB-KB} 26. h3 {[%emt 0:00:30]} Kc7 {[%emt 0:00:30]} 27. Kc3 {[%emt 0:00:30]} Kd6 {[%emt 0:00:30]} 28. Kc4 {[%emt 0:00:30]} Ke5 {[%emt 0:00:30]} 29. b3 {[%emt 0:00:30]} Bc1 {[%emt 0:00:30]} 30. Kd3 {[%emt 0:00:30]} b5 {[%emt 0:00:30]} 31. Bg4 {[%emt 0:00:30]} Bh6 {[%emt 0:00:30]} 32. Bh5 {[%emt 0:00:30]} bxa4 {[%emt 0:00:30]} 33. bxa4 {[%emt 0:00:30]} f5 {[%emt 0:00:30]} ({Black should play} 33... Kf4 $17) 34. exf5 $11 {[%emt 0:00:30]} Kxf5 {[%emt 0:00:30] Strongly threatening ...e5.} 35. Bg4+ {[%emt 0:00:30]} Ke5 {[%emt 0:00:30]} 36. Bf3 {[%emt 0:00:30]} c5 {[%emt 0:00:30] And now ...Kf4 would win.} 37. Bb7 $2 {[%emt 0:00:30][%mdl 8192] [#] This move loses the game for White.} (37. Bg4 $11) 37... Kf4 $1 $19 {[%emt 0:00:30]} 38. Bc6 {[%emt 0:00:30]} Bg7 {[%emt 0:00:30]} 39. Bb7 {[%emt 0:00:30]} Bb2 {[%emt 0:00:30]} 40. Bc6 {[%emt 0:00:30]} Ba3 {[%emt 0:00:30]} 41. Bb7 {[%emt 0:00:30]} e5 {[%emt 0:00:30][%cal Be6e5,Be5e4,Be4e3][%mdl 32]} 42. Bc6 {[%emt 0:00:30]} Bb2 {[%emt 0:00:30][%cal Oe5e4]} 43. Bb7 {[%emt 0:00:30]} e4+ {[%emt 0:00:30]} 44. Kc4 $2 {[%emt 0:00:30]} (44. Ke2) 44... e3 {[%emt 0:00:30]} 45. Bf3 {[%emt 0:00:30] [#]} Kg3 $1 {[%emt 0:00:30] ( -> ...Kf2)} 46. Kb3 {[%emt 0:00:30]} Bf6 {[%emt 0:00:30] Black mates.} 47. Kc2 {[%emt 0:00:30]} Kf2 {[%emt 0:00:30]} 48. Kd1 {[%emt 0:00:30]} c4 {[%emt 0:00:30][%cal Bc5c4,Bc4c3][%mdl 32]} 49. Be2 {[%emt 0:00:30]} c3 {[%emt 0:00:30] Weighted Error Value: White=0.63/Black=0.08 (flawless)} (49... Kxg2 $2 {is the wrong capture.} 50. Bxc4 Kxh3 51. Ke2 $19) 0-1